bitfinex/quotes_BTCUSD_20251117
["timestamp","ask_amount","ask_price","bid_price","bid_amount"]
[1763410384706,0.00043874,91940.0,91910.0,0.76610506]
[1763410384922,0.00043874,91940.0,91905.0,0.08769258]
[1763410384923,0.7665438,91940.0,91905.0,0.08769258]
[1763410385099,0.7665438,91940.0,91890.0,0.76610506]
[1763410385241,0.7665438,91940.0,91904.0,0.001]
[1763410385242,0.76610506,91930.0,91904.0,0.001]
[1763410385442,0.76610506,91930.0,91875.0,0.10264112]
[1763410385443,0.76610506,91920.0,91875.0,0.10264112]
[1763410385644,0.76610506,91920.0,91890.0,0.10264112]
[1763410385868,0.76610506,91920.0,91910.0,0.001]
[1763410386092,0.76610506,91920.0,91891.0,0.00819334]
[1763410386316,0.00999999,91930.0,91875.0,0.10264112]
[1763410386317,0.76610506,91910.0,91878.0,0.00819334]
[1763410386518,0.77610505,91920.0,91904.0,0.001]
[1763410386721,0.04341874,91938.0,91904.0,0.001]
[1763410387044,0.00999999,91920.0,91904.0,0.001]
[1763410387176,0.77610505,91920.0,91904.0,0.001]
[1763410387375,0.00569963,91939.0,91905.0,0.10264112]
[1763410387604,0.00569963,91939.0,91906.0,0.09515808]
[1763410387973,0.00569963,91939.0,91910.0,0.001]
[1763410388176,0.00569963,91939.0,91911.0,0.00818176]
[1763410388377,0.00569963,91939.0,91921.0,0.10264112]
[1763410388592,0.00569963,91939.0,91911.0,0.10264112]
[1763410388816,0.00569963,91939.0,91912.0,0.00818142]
[1763410389026,0.00569963,91939.0,91925.0,0.10264112]
[1763410389220,0.00569963,91939.0,91926.0,0.00817665]
[1763410389632,0.00569963,91939.0,91914.0,0.00817665]
[1763410390049,0.00569963,91939.0,91913.0,0.08769276]
[1763410390268,0.00569963,91939.0,91911.0,0.10364112]
[1763410390464,0.00569963,91939.0,91911.0,0.001]
[1763410390687,0.76610506,91930.0,91911.0,0.001]
[1763410390907,0.76610506,91930.0,91890.0,0.7951764]
[1763410391112,0.00569963,91939.0,91926.0,0.001]
[1763410391445,0.00569963,91939.0,91876.0,0.04341874]
[1763410391446,0.04341874,91935.0,91888.0,0.02907134]
[1763410391571,0.04341874,91935.0,91882.0,0.02907134]
[1763410391572,0.02719342,91934.0,91882.0,0.02907134]
[1763410391773,0.00569963,91939.0,91911.0,0.001]
[1763410391774,0.76610506,91920.0,91911.0,0.001]
[1763410391974,0.76610506,91920.0,91880.0,0.02907134]
[1763410392237,0.0201421,91919.0,91880.0,0.02907134]
[1763410392392,0.0201421,91919.0,91875.0,0.10264112]
[1763410392393,0.0201421,91918.0,91890.0,0.76610506]
[1763410392605,0.0201421,91917.0,91891.0,0.11083144]
[1763410392805,0.0201421,91916.0,91891.0,0.11083144]
[1763410393007,0.0201421,91915.0,91891.0,0.11083144]
[1763410393208,0.0201421,91914.0,91900.0,0.76610506]
[1763410393410,0.0201421,91913.0,91905.0,0.17926483]
[1763410393608,0.0201421,91912.0,91906.0,0.00819]
[1763410393829,0.0201421,91911.0,91906.0,0.00819]
[1763410394034,0.0201421,91910.0,91904.0,0.00013199]
[1763410394240,0.0201421,91909.0,91905.0,0.10264112]
[1763410394447,0.0201421,91908.0,91906.0,0.008191]
[1763410394646,0.0201421,91907.0,91906.0,0.01928741]
[1763410394830,0.0201421,91907.0,91906.0,0.008191]
[1763410395008,0.0201421,91938.0,91904.0,0.00013199]
[1763410395208,0.0201421,91937.0,91905.0,0.10264112]
[1763410395412,0.00569963,91939.0,91905.0,0.10264112]
[1763410395413,0.0201421,91936.0,91905.0,0.10264112]
[1763410395624,0.0201421,91935.0,91905.0,0.10264112]
[1763410395839,0.0201421,91934.0,91906.0,0.08888782]
[1763410396045,0.0201421,91933.0,91906.0,0.08888782]
[1763410396252,0.0201421,91932.0,91907.0,0.00818463]
[1763410396455,0.0201421,91931.0,91906.0,0.002]
[1763410396667,0.0201421,91930.0,91906.0,0.002]
[1763410396900,0.0201421,91929.0,91905.0,0.10264112]
[1763410397113,0.0201421,91928.0,91906.0,0.01027731]
[1763410397309,0.0201421,91927.0,91906.0,0.01027731]
[1763410397488,0.0201421,91926.0,91906.0,0.01027731]
[1763410397692,0.0201421,91925.0,91906.0,0.01027731]
[1763410397918,0.0201421,91924.0,91904.0,0.00013199]
[1763410398236,0.0201421,91923.0,91907.0,0.10264112]
[1763410398432,0.0201421,91922.0,91907.0,0.00013197]
[1763410398657,0.04341874,91919.0,91907.0,0.00013197]
[1763410398860,0.8095238,91917.0,91907.0,0.00013197]
[1763410399076,0.04341874,91915.0,91907.0,0.00013197]
[1763410399292,0.04341874,91913.0,91907.0,0.00013197]
[1763410399498,0.04341874,91911.0,91907.0,0.00013197]
[1763410399721,0.04341874,91909.0,91907.0,0.00013197]
[1763410399925,0.06356084,91908.0,91907.0,0.00013197]
[1763410400136,0.0201421,91908.0,91907.0,0.00013197]
[1763410400979,0.0201421,91908.0,91907.0,0.00832263]
[1763410401202,0.0201421,91908.0,91907.0,0.00013197]
[1763410401421,0.0201421,91908.0,91907.0,0.00113197]
[1763410401641,0.0201421,91908.0,91907.0,0.00013197]
[1763410401889,0.0201421,91908.0,91907.0,0.00113197]
[1763410402342,0.0201421,91908.0,91907.0,0.00013197]
[1763410404127,0.0201421,91908.0,91907.0,0.00113197]
[1763410404351,0.0201421,91908.0,91907.0,0.00013197]
[1763410404818,0.0201421,91908.0,91907.0,0.00113197]
[1763410405031,0.0201421,91908.0,91907.0,0.00013197]
[1763410405696,0.0201421,91908.0,91907.0,0.00113197]
[1763410407025,0.0201421,91908.0,91907.0,0.00013197]
[1763410407471,0.0201421,91908.0,91907.0,0.00113197]
[1763410407685,0.0201421,91908.0,91907.0,0.00013197]
[1763410408118,0.0201421,91908.0,91907.0,0.00113197]
[1763410410144,0.0201421,91908.0,91907.0,0.00013197]
[1763410410346,0.06356084,91908.0,91907.0,0.00113197]
[1763410410515,0.06991692,91908.0,91907.0,0.00113197]
[1763410410713,0.06356084,91908.0,91907.0,0.00013197]
[1763410410924,0.06356084,91908.0,91907.0,0.00113197]
[1763410411163,0.06356084,91908.0,91907.0,0.00096768]
[1763410411346,0.06356084,91908.0,91851.0,0.00819565]
[1763410411347,0.04341874,91907.0,91851.0,0.00819565]
[1763410411589,0.77610505,91890.0,91864.0,0.10264112]
[1763410411799,0.0201421,91889.0,91865.0,0.008211]
[1763410411975,0.0201421,91888.0,91865.0,0.008211]
[1763410412187,0.0201421,91887.0,91865.0,0.008211]
[1763410412482,0.77610505,91900.0,91878.0,0.10264112]
[1763410412679,0.04341874,91899.0,91879.0,0.01846657]
[1763410412900,0.96332113,91890.0,91864.0,0.10264112]
[1763410413343,0.04341874,91899.0,91864.0,0.10264112]
[1763410413344,0.04341874,91899.0,91865.0,0.00820975]
[1763410413550,0.04341874,91921.0,91878.0,0.10264112]
[1763410413886,0.96332113,91900.0,91879.0,0.00819718]
[1763410414085,0.96332113,91900.0,91879.0,0.10264112]
[1763410414314,0.96332113,91900.0,91880.0,0.0102773]
[1763410415394,0.96332113,91890.0,91880.0,0.0112773]
[1763410415586,0.97332112,91900.0,91880.0,0.001]
[1763410415780,0.96332113,91890.0,91880.0,0.001]
[1763410416511,0.96332113,91890.0,91878.0,0.00013184]
[1763410416908,0.96332113,91890.0,91880.0,0.002]
[1763410417090,0.96332113,91890.0,91881.0,0.0082043]
[1763410417291,0.97332112,91900.0,91881.0,0.0082043]
[1763410417523,0.96332113,91891.0,91881.0,0.0082043]
[1763410417927,0.96332113,91891.0,91878.0,0.00013184]
[1763410418098,0.00999999,91900.0,91880.0,0.001]
[1763410418250,0.00999999,91900.0,91881.0,0.1108429]
[1763410418450,0.97332112,91900.0,91882.0,0.01109747]
[1763410418721,0.97332112,91900.0,91883.0,0.0082011]
[1763410418846,0.96332113,91900.0,91883.0,0.0082011]
[1763410419047,0.00999999,91930.0,91895.0,0.10264112]
[1763410419307,0.03277633,91926.0,91896.0,0.00818912]
[1763410419506,0.96332113,91930.0,91897.0,0.01108302]
[1763410419507,0.97332112,91930.0,91897.0,0.01108302]
[1763410419707,0.96332113,91920.0,91909.0,0.10264112]
[1763410419885,0.97332112,91930.0,91910.0,0.00818687]
[1763410420088,0.96332113,91920.0,91897.0,0.01108302]
[1763410420296,0.96332113,91920.0,91898.0,0.00819096]
[1763410420493,0.96332113,91910.0,91898.0,0.01219151]
[1763410420895,0.00999999,91930.0,91898.0,0.01232335]
[1763410421138,0.96332113,91910.0,91899.0,0.00818811]
[1763410421307,0.96332113,91920.0,91898.0,0.01332335]
[1763410421509,0.96332113,91920.0,91898.0,0.01232335]
[1763410421841,0.95532113,91920.0,91899.0,0.01149645]
[1763410422449,0.95532113,91920.0,91900.0,0.00819028]
[1763410422655,0.00999999,91930.0,91900.0,0.00819028]
[1763410422656,0.97332112,91930.0,91909.0,0.10264112]
[1763410422902,0.96332113,91930.0,91910.0,0.00818436]
[1763410423107,0.97332112,91930.0,91910.0,0.00818436]
[1763410423309,0.03277275,91938.0,91911.0,0.01108255]
[1763410423485,0.00569963,91939.0,91912.0,0.00818167]
[1763410423846,0.96332113,91930.0,91912.0,0.00818167]
[1763410424048,0.00569963,91939.0,91899.0,0.01149645]
[1763410424049,0.96332113,91922.0,91899.0,0.01149645]
[1763410424253,0.02017868,91921.0,91910.0,0.001]
[1763410424454,0.00569963,91939.0,91911.0,0.00818628]
[1763410424455,0.02017868,91920.0,91911.0,0.00818628]
[1763410424657,0.02017868,91919.0,91911.0,0.00818628]
[1763410425090,0.02017868,91919.0,91910.0,0.01036411]
[1763410425284,0.02017868,91919.0,91909.0,0.10264112]
[1763410425488,0.02017868,91919.0,91910.0,0.00818713]
[1763410425816,0.02017868,91919.0,91900.0,0.00818713]
[1763410425958,0.02017868,91918.0,91900.0,0.00818713]
[1763410426162,0.97332112,91930.0,91900.0,0.00818713]
[1763410426163,0.02017868,91917.0,91900.0,0.00818713]
[1763410426416,0.02017868,91916.0,91910.0,0.001]
[1763410426571,0.97332112,91930.0,91909.0,0.10264112]
[1763410426572,0.02017868,91915.0,91909.0,0.10264112]
[1763410426776,0.02017868,91914.0,91910.0,0.0024892]
[1763410426971,0.97332112,91930.0,91910.0,0.0024892]
[1763410426972,0.02017868,91913.0,91911.0,0.10264112]
[1763410427173,0.96332113,91930.0,91912.0,0.00248832]
[1763410427376,0.0201747,91929.0,91913.0,0.10264112]
[1763410427582,0.0201747,91928.0,91914.0,0.0127473]
[1763410427924,0.0201747,91927.0,91914.0,0.00248319]
[1763410428153,0.0201747,91926.0,91902.0,0.00248347]
[1763410428279,0.0201747,91925.0,91914.0,0.10264112]
[1763410428480,0.0201747,91924.0,91915.0,0.00248436]
[1763410428682,0.02017297,91923.0,91902.0,0.00248436]
[1763410428886,0.00569963,91939.0,91902.0,0.00248436]
[1763410428887,0.02017297,91922.0,91909.0,0.10264112]
[1763410429185,0.02017297,91921.0,91911.0,0.002]
[1763410429406,0.02017297,91920.0,91912.0,0.00248606]
[1763410429631,0.02017297,91919.0,91913.0,0.01071272]
[1763410429788,0.02017297,91918.0,91913.0,0.01071272]
[1763410429995,0.00569963,91939.0,91913.0,0.01071272]
[1763410430204,0.02017295,91938.0,91923.0,0.10264112]
[1763410430413,0.02017295,91937.0,91924.0,0.00247754]
[1763410430771,0.00569963,91939.0,91924.0,0.00247754]
[1763410430772,0.02017295,91936.0,91925.0,0.01051187]
[1763410430987,0.00569963,91939.0,91926.0,0.00247754]
[1763410430988,0.02017295,91935.0,91926.0,0.00247754]
[1763410431179,0.02017295,91934.0,91926.0,0.00247754]
[1763410431389,0.02017295,91933.0,91913.0,0.01271272]
[1763410431600,0.96332113,91930.0,91913.0,0.01271272]
[1763410431728,0.02017295,91929.0,91914.0,0.01153538]
[1763410431933,0.02017295,91928.0,91913.0,0.002]
[1763410432144,0.96332113,91923.0,91883.0,0.03921365]
[1763410432339,0.02017295,91922.0,91909.0,0.10264112]
[1763410432540,0.02017295,91921.0,91909.0,0.10264112]
[1763410432768,0.02017295,91920.0,91880.0,0.03921365]
[1763410432969,0.96332113,91911.0,91902.0,0.01137371]
[1763410433174,0.02015978,91910.0,91902.0,0.01137371]
[1763410433373,0.96332113,91911.0,91901.0,0.002]
[1763410433374,0.02015978,91909.0,91901.0,0.002]
[1763410433598,0.02015978,91908.0,91872.0,0.03921365]
[1763410433787,0.02015978,91907.0,91871.0,0.15431365]
[1763410433999,0.96332113,91911.0,91901.0,0.002]
[1763410434212,0.02015983,91910.0,91901.0,0.002]
[1763410434378,0.02015991,91909.0,91901.0,0.01246411]
[1763410434590,0.02015942,91908.0,91901.0,0.002]
[1763410434764,0.96332113,91911.0,91901.0,0.002]
[1763410434975,0.02015984,91910.0,91872.0,0.03921365]
[1763410435175,0.02015984,91909.0,91872.0,0.03921365]
[1763410435392,0.02015984,91908.0,91901.0,0.001]
[1763410435614,0.02015908,91907.0,91901.0,0.001]
[1763410435822,0.02015908,91907.0,91870.0,0.00023261]
[1763410435823,0.02015866,91906.0,91870.0,0.00023261]
[1763410436022,0.96332113,91900.0,91895.0,0.002]
[1763410436193,0.00999999,91920.0,91895.0,0.002]
[1763410436194,0.96332113,91910.0,91895.0,0.002]
[1763410436378,0.02016,91909.0,91882.0,0.01026411]
[1763410436595,0.96332113,91900.0,91882.0,0.01026411]
[1763410436789,0.02016,91899.0,91883.0,0.01129052]
[1763410437020,0.96332113,91900.0,91883.0,0.01129052]
[1763410437021,0.02016,91898.0,91883.0,0.01129052]
[1763410437245,0.02016,91897.0,91883.0,0.01142236]
[1763410437406,0.96332113,91893.0,91883.0,0.00013184]
[1763410437612,0.02015699,91892.0,91883.0,0.00013184]
[1763410437819,0.02015699,91891.0,91883.0,0.00013184]
[1763410438000,0.02015699,91890.0,91883.0,0.00013184]
[1763410438206,0.02015531,91889.0,91883.0,0.00013184]
[1763410438426,0.02015496,91888.0,91883.0,0.00013184]
[1763410438627,0.02015496,91887.0,91883.0,0.00013184]
[1763410438826,0.02015496,91886.0,91883.0,0.00213184]
[1763410439027,0.03278629,91887.0,91883.0,0.00213184]
[1763410439028,0.02015496,91885.0,91883.0,0.00013184]
[1763410439230,0.02015496,91884.0,91883.0,0.00013184]
[1763410439476,0.02015496,91884.0,91883.0,0.00113184]
[1763410439606,0.02015496,91884.0,91883.0,0.00013184]
[1763410440025,0.02015496,91884.0,91883.0,0.00113184]
[1763410440834,0.0635737,91884.0,91883.0,0.00113184]
[1763410441030,0.0635737,91884.0,91883.0,0.00013184]
[1763410441345,0.01815496,91884.0,91883.0,0.00013184]
[1763410441560,0.01815496,91884.0,91883.0,0.00113184]
[1763410441760,0.03278629,91887.0,91883.0,0.00013184]
[1763410441761,0.04341874,91886.0,91883.0,0.00013184]
[1763410442065,0.07062636,91886.0,91883.0,0.00113184]
[1763410442249,0.07062636,91886.0,91883.0,0.00013184]
[1763410442469,0.01999998,91880.0,91870.0,0.00016673]
[1763410442622,0.04341874,91879.0,91870.0,0.00052025]
[1763410442850,0.04341874,91879.0,91845.0,0.06580011]
[1763410443031,0.04341874,91879.0,91846.0,0.10366938]
[1763410443442,0.96332113,91860.0,91846.0,0.10366938]
[1763410443689,0.96332113,91860.0,91845.0,0.00013131]
[1763410444017,0.97332112,91860.0,91845.0,0.00013131]
[1763410444227,0.9933211,91860.0,91845.0,0.00013131]
[1763410444456,0.04341874,91859.0,91845.0,0.00013131]
[1763410444668,0.04341874,91857.0,91845.0,0.00013131]
[1763410444876,0.04341874,91855.0,91845.0,0.00113131]
[1763410445049,0.04341874,91853.0,91845.0,0.00013131]
[1763410445294,0.02721769,91852.0,91845.0,0.00013131]
[1763410445515,0.02721562,91859.0,91845.0,0.00113131]
[1763410445739,0.96332113,91855.0,91851.0,0.00055148]
[1763410445944,0.06863003,91887.0,91846.0,0.09765544]
[1763410445945,0.96332113,91860.0,91846.0,0.09765544]
[1763410446149,0.97332112,91860.0,91847.0,0.10366938]
[1763410446521,0.97332112,91860.0,91845.0,0.00113131]
[1763410446738,0.9933211,91860.0,91845.0,0.00113131]
[1763410447146,0.9933211,91860.0,91845.0,0.00013131]
[1763410447351,0.02721562,91859.0,91845.0,0.00013131]
[1763410447518,0.02721562,91859.0,91845.0,0.00113131]
[1763410447703,0.02721562,91859.0,91845.0,0.00013131]
[1763410447898,0.04602,91846.0,91845.0,0.01748131]
[1763410448122,0.10645,91846.0,91845.0,0.01848131]
[1763410448334,0.10645,91846.0,91845.0,0.01748131]
[1763410448531,0.20365,91846.0,91845.0,0.01748131]
[1763410448735,0.24706874,91846.0,91845.0,0.01848131]
[1763410448932,0.24706874,91846.0,91845.0,0.01748131]
[1763410449175,0.27987701,91846.0,91845.0,0.01748131]
[1763410449581,0.10384874,91845.0,91844.0,9.96276369]
[1763410449755,0.22826851,91845.0,91844.0,9.94357052]
[1763410449976,0.22794188,91845.0,91844.0,9.8434408]
[1763410450164,0.28269339,91845.0,91844.0,6.50495321]
[1763410450369,0.21877535,91845.0,91844.0,3.63480098]
[1763410450700,0.21877535,91845.0,91844.0,3.61516262]
[1763410451004,0.24599512,91845.0,91844.0,3.58025877]
[1763410451206,0.24599512,91845.0,91844.0,2.85486825]
[1763410451420,0.21877535,91845.0,91844.0,2.63725395]
[1763410451635,0.21877535,91845.0,91844.0,2.50494407]
[1763410451842,0.20072211,91845.0,91844.0,1.34793386]
[1763410452041,0.18484977,91845.0,91844.0,1e-08]
[1763410452315,0.15763,91845.0,91844.0,1e-08]
[1763410452567,0.07882827,91846.0,91844.0,1e-08]
[1763410452742,0.07882827,91846.0,91830.0,0.03334]
[1763410452972,0.02721977,91845.0,91830.0,0.03334]
[1763410453178,0.06043,91841.0,91820.0,0.0002]
[1763410453378,0.13106969,91841.0,91820.0,0.0002]
[1763410453546,0.22096138,91841.0,91820.0,0.0002]
[1763410453745,0.24818233,91841.0,91820.0,0.0002]
[1763410454159,0.04929396,91841.0,91820.0,0.0002]
[1763410454362,0.05061842,91841.0,91820.0,0.0002]
[1763410454524,0.02207301,91841.0,91820.0,0.0002]
[1763410454958,0.02999997,91830.0,91820.0,0.0002]
[1763410455171,0.12887112,91821.0,91820.0,0.00063846]
[1763410455371,0.14878376,91821.0,91820.0,0.00063846]
[1763410456156,0.1922025,91821.0,91820.0,0.00063846]
[1763410457210,0.12255376,91821.0,91820.0,0.00063846]
[1763410457677,0.01991264,91821.0,91820.0,0.00063846]
[1763410459935,0.05272909,91821.0,91820.0,0.00063846]
[1763410460279,0.05269565,91821.0,91820.0,0.00063846]
[1763410461375,0.05269565,91821.0,91820.0,0.15428846]
[1763410463064,0.05272702,91821.0,91820.0,0.15428846]
[1763410463348,0.05272702,91821.0,91820.0,0.15498555]
[1763410463704,0.05272702,91821.0,91820.0,0.00133555]
[1763410464338,0.05272702,91821.0,91820.0,0.00233555]
[1763410464541,0.05272702,91821.0,91820.0,0.00133555]
[1763410465104,0.10222702,91821.0,91820.0,0.00133555]
[1763410465322,0.05272702,91821.0,91820.0,0.00133555]
[1763410465544,0.05321702,91821.0,91820.0,0.00133555]
[1763410465746,0.10222702,91821.0,91820.0,0.00133555]
[1763410465921,0.05272702,91821.0,91820.0,0.00133555]
[1763410466308,0.05272702,91821.0,91820.0,0.06260555]
[1763410466460,0.05272702,91821.0,91820.0,0.15498555]
[1763410467061,0.05272702,91821.0,91820.0,0.00133555]
[1763410468057,0.05272702,91821.0,91820.0,0.15498555]
[1763410468684,0.05272702,91821.0,91820.0,0.06260555]
[1763410469294,0.05272702,91821.0,91820.0,0.00133555]
[1763410469834,0.05321702,91821.0,91820.0,0.00133555]
[1763410470038,0.12053534,91821.0,91820.0,0.00133555]
[1763410470178,0.07152534,91821.0,91820.0,0.00133555]
[1763410470585,0.10222702,91821.0,91820.0,0.00133555]
[1763410470785,0.05321702,91821.0,91820.0,0.00133555]
[1763410471526,0.10222702,91821.0,91820.0,0.00133555]
[1763410472561,0.1294539,91821.0,91820.0,0.00133555]
[1763410473102,0.12927933,91821.0,91820.0,0.00133555]
[1763410473388,0.98332111,91820.0,91810.0,0.0004]
[1763410473530,0.10264112,91811.0,91810.0,0.0004]
[1763410473731,0.12255169,91811.0,91810.0,0.0004]
[1763410473932,0.12255169,91811.0,91810.0,0.00069056]
[1763410475192,0.1227444,91811.0,91810.0,0.00069056]
[1763410475846,0.15556606,91811.0,91810.0,0.00069056]
[1763410475989,0.15628606,91811.0,91810.0,0.00069056]
[1763410476189,0.1997048,91811.0,91810.0,0.00069056]
[1763410476560,0.2487148,91811.0,91810.0,0.00069056]
[1763410476735,0.2487148,91811.0,91808.0,4.37436567]
[1763410476736,0.00049,91809.0,91808.0,4.37436567]
[1763410476935,0.09124246,91809.0,91808.0,4.26555494]
[1763410477140,0.14048246,91809.0,91808.0,4.26555494]
[1763410477892,0.14048246,91809.0,91808.0,4.250502]
[1763410478303,0.09124246,91809.0,91808.0,4.250502]
[1763410478754,0.05700835,91811.0,91808.0,4.250502]
[1763410478956,0.04973,91810.0,91808.0,4.250502]
[1763410479160,0.02719241,91810.0,91808.0,4.250502]
[1763410479370,0.0562485,91810.0,91808.0,4.250502]
[1763410479577,0.07878609,91809.0,91808.0,4.250502]
[1763410479715,0.04973,91809.0,91808.0,4.250502]
[1763410479920,0.07872751,91809.0,91808.0,4.250502]
[1763410480127,0.04973,91809.0,91808.0,4.250502]
[1763410481105,0.11401169,91809.0,91808.0,4.19566477]
[1763410481224,0.09314874,91809.0,91808.0,3.23103179]
[1763410481434,0.09314874,91809.0,91808.0,2.57644259]
[1763410481642,0.12212334,91809.0,91808.0,2.57644259]
[1763410481839,0.09314874,91809.0,91808.0,2.35824619]
[1763410482251,0.09314874,91809.0,91808.0,1.19646287]
[1763410482252,0.20824874,91809.0,91808.0,1.19646287]
[1763410483688,0.20924874,91809.0,91808.0,1.19646287]
[1763410484319,0.14821383,91809.0,91808.0,0.97826647]
[1763410484514,0.14821383,91809.0,91802.0,0.00023246]
[1763410484515,0.04341874,91806.0,91802.0,1.3e-07]
[1763410484692,0.04341874,91804.0,91802.0,1.3e-07]
[1763410484896,0.07061115,91803.0,91802.0,1.3e-07]
[1763410485096,0.09314874,91801.0,91800.0,1.01152425]
[1763410485299,0.12034115,91801.0,91800.0,1.01152425]
[1763410485508,0.12034115,91801.0,91800.0,0.13968213]
[1763410486205,0.12034115,91801.0,91800.0,0.07530454]
[1763410486413,0.12034115,91801.0,91798.0,0.10191116]
[1763410486414,0.15851874,91799.0,91798.0,0.10191116]
[1763410486631,0.21168115,91799.0,91798.0,0.09235699]
[1763410486840,0.26167115,91799.0,91798.0,0.09235699]
[1763410487078,0.23447874,91799.0,91798.0,0.08280282]
[1763410487293,0.23447874,91799.0,91790.0,0.0004]
[1763410487294,0.04341874,91798.0,91797.0,7.30974538]
[1763410487660,0.09340874,91798.0,91797.0,7.30974538]
[1763410487862,0.15343944,91798.0,91797.0,7.28567393]
[1763410488216,0.15343944,91798.0,91797.0,7.23107242]
[1763410488569,0.15343944,91798.0,91797.0,6.01322724]
[1763410488741,0.15343944,91798.0,91797.0,4.60782041]
[1763410488957,0.15343944,91798.0,91797.0,3.27018951]
[1763410489314,0.15443944,91798.0,91797.0,3.27018951]
[1763410489521,0.27447907,91798.0,91785.0,4.69928911]
[1763410489743,0.27447907,91798.0,91785.0,3.62451061]
[1763410489744,0.32690986,91786.0,91785.0,3.62451061]
[1763410489919,0.32690986,91786.0,91785.0,3.57667507]
[1763410490158,0.32690986,91786.0,91785.0,2.01747895]
[1763410490325,0.32690986,91786.0,91785.0,1.1335376]
[1763410490572,0.32690986,91786.0,91785.0,0.22514831]
[1763410490772,0.34694367,91786.0,91785.0,4e-08]
[1763410490971,0.13431874,91779.0,91758.0,0.0003]
[1763410491176,0.04999,91775.0,91774.0,7.61982103]
[1763410491399,0.07002381,91775.0,91774.0,7.52797365]
[1763410491598,0.07002381,91775.0,91774.0,7.40475135]
[1763410491884,0.1028621,91775.0,91774.0,7.22397509]
[1763410492893,0.1028621,91775.0,91774.0,5.41826048]
[1763410493107,0.1028621,91775.0,91774.0,4.05037996]
[1763410493308,0.1028621,91775.0,91774.0,2.84115237]
[1763410493508,0.1028621,91775.0,91774.0,2.74830499]
[1763410493867,0.1028621,91775.0,91774.0,2.60699436]
[1763410494067,0.1028621,91775.0,91774.0,2.60599436]
[1763410494269,0.1028621,91775.0,91774.0,2.47293229]
[1763410494270,0.28857325,91775.0,91774.0,2.47293229]
[1763410494504,0.26138084,91775.0,91774.0,2.41159287]
[1763410494871,0.14628084,91775.0,91774.0,2.41059287]
[1763410495068,0.14628084,91775.0,91774.0,2.29367404]
[1763410495266,0.14628084,91775.0,91774.0,2.20182666]
[1763410495483,0.15198047,91775.0,91774.0,2.20082666]
[1763410495688,0.001,91775.0,91774.0,2.20082666]
[1763410495885,0.00569963,91775.0,91774.0,2.20082666]
[1763410496327,0.03954011,91775.0,91774.0,2.20082666]
[1763410496775,0.03954011,91775.0,91774.0,2.10086216]
[1763410498126,0.03954011,91775.0,91774.0,1.93841154]
[1763410498342,0.03854011,91775.0,91774.0,1.88429666]
[1763410500888,0.03854011,91775.0,91774.0,0.36346187]
[1763410501072,0.03854011,91775.0,91774.0,5e-08]
[1763410501504,0.03284048,91775.0,91774.0,5e-08]
[1763410501775,0.03284048,91775.0,91774.0,0.02179271]
[1763410502048,0.03284048,91775.0,91774.0,0.03296986]
[1763410502308,0.02179265,91772.0,91760.0,0.76842234]
[1763410502538,0.02179265,91772.0,91761.0,0.04341874]
[1763410502757,0.02179265,91772.0,91760.0,0.0004]
[1763410503886,0.02179265,91772.0,91765.0,0.0462]
[1763410504100,0.02179265,91772.0,91770.0,0.02199361]
[1763410504308,0.02179265,91772.0,91770.0,0.0002]
[1763410504512,0.02179265,91772.0,91762.0,7.46423764]
[1763410504686,0.02179265,91772.0,91770.0,0.002]
[1763410505609,0.02179265,91772.0,91762.0,7.46423764]
[1763410505610,0.02999997,91770.0,91763.0,0.02179527]
[1763410506093,0.02999997,91770.0,91763.0,0.02079527]
[1763410506298,0.02999997,91770.0,91762.0,7.46423764]
[1763410506299,0.00100012,91769.0,91762.0,7.46423764]
[1763410507126,0.03100009,91770.0,91762.0,7.46323764]
[1763410507325,0.00999999,91770.0,91762.0,7.46323764]
[1763410507659,0.02011573,91769.0,91762.0,7.46323764]
[1763410507883,0.00999999,91770.0,91766.0,0.00023275]
[1763410507884,0.02111585,91768.0,91766.0,0.00023275]
[1763410508231,0.02011573,91767.0,91766.0,0.00023275]
[1763410509047,0.02011573,91767.0,91766.0,0.00123275]
[1763410509389,0.02011573,91767.0,91762.0,7.40872093]
[1763410509573,0.02111585,91766.0,91762.0,7.40872093]
[1763410509778,0.02011573,91765.0,91762.0,7.40872093]
[1763410510110,0.00100012,91764.0,91762.0,7.40772093]
[1763410510289,0.02011573,91763.0,91762.0,7.40772093]
[1763410510708,0.02011573,91768.0,91762.0,7.40772093]
[1763410510933,0.02011573,91767.0,91762.0,7.40772093]
[1763410511178,0.03089997,91770.0,91762.0,7.40872093]
[1763410511179,0.02011573,91766.0,91762.0,7.40872093]
[1763410511328,0.02011573,91765.0,91763.0,0.02179527]
[1763410511536,0.0009,91770.0,91769.0,1e-08]
[1763410511731,0.02103751,91770.0,91768.0,1e-08]
[1763410511930,0.02013872,91769.0,91768.0,0.02179409]
[1763410512340,0.02013138,91769.0,91768.0,1e-08]
[1763410512526,0.0009,91770.0,91768.0,0.09130388]
[1763410512726,0.0009,91770.0,91765.0,0.10264112]
[1763410512932,0.02013103,91769.0,91764.0,0.10366938]
[1763410513191,0.0009,91770.0,91764.0,0.10366938]
[1763410513420,0.0201269,91769.0,91762.0,7.40772093]
[1763410513622,0.0009,91770.0,91762.0,7.40772093]
[1763410513827,0.02012556,91769.0,91762.0,7.40772093]
[1763410514044,0.02012556,91769.0,91768.0,0.002]
[1763410514195,0.02012556,91769.0,91763.0,0.02179527]
[1763410514516,0.02012556,91769.0,91764.0,0.10366938]
[1763410514922,0.06392,91765.0,91762.0,7.40772093]
[1763410515079,0.02012556,91764.0,91762.0,7.40772093]
[1763410515266,0.02012556,91764.0,91762.0,7.34342927]
[1763410515267,0.02012556,91763.0,91762.0,7.34342927]
[1763410515470,0.08404556,91763.0,91762.0,7.34342927]
[1763410515680,0.17912556,91763.0,91762.0,7.34342927]
[1763410516712,0.02012556,91763.0,91762.0,7.44709865]
[1763410517122,0.02012556,91763.0,91762.0,7.44909865]
[1763410517454,0.02012556,91763.0,91762.0,7.44709865]
[1763410517855,0.0009,91770.0,91762.0,7.44909865]
[1763410518059,0.02011109,91769.0,91763.0,0.02161083]
[1763410518224,0.02011109,91768.0,91764.0,0.10366938]
[1763410518427,0.0009,91770.0,91762.0,7.34542927]
[1763410518428,0.02011109,91767.0,91762.0,7.34542927]
[1763410518627,0.02011109,91766.0,91762.0,7.34542927]
[1763410518850,0.0009,91770.0,91762.0,7.34542927]
[1763410519050,0.02010999,91769.0,91762.0,7.34542927]
[1763410519295,0.02010999,91768.0,91762.0,7.34542927]
[1763410519488,0.02010999,91767.0,91763.0,0.02179527]
[1763410519701,0.02010999,91766.0,91763.0,0.02179527]
[1763410519900,0.02010999,91765.0,91763.0,0.02179527]
[1763410520123,0.02010999,91764.0,91763.0,0.02179527]
[1763410520555,0.02010999,91769.0,91763.0,0.02179527]
[1763410520822,0.02010999,91768.0,91764.0,0.10366938]
[1763410521018,0.02010999,91767.0,91765.0,0.0217948]
[1763410521150,0.0009,91770.0,91764.0,0.10366938]
[1763410521355,0.0201219,91769.0,91766.0,0.10264112]
[1763410521557,0.0009,91770.0,91767.0,0.02179432]